bitfinex-derivatives/quotes_SOLF0:USTF0_20241011
["timestamp","ask_amount","ask_price","bid_price","bid_amount"]
[1728658678598,0.12502,144.11,144.1,3.471]
[1728658680409,0.12502,144.11,144.07,16.84]
[1728658680410,0.12502,144.11,144.09,3.4711]
[1728658680611,10.78502,144.11,144.09,3.4711]
[1728658680811,14.25592,144.11,144.09,3.4711]
[1728658681309,3.4715,144.08,144.07,6.18]
[1728658681508,3.4715,144.08,144.06,3.4719]
[1728658681902,14.1313,144.09,144.06,3.4719]
[1728658682205,14.1313,144.09,144.07,3.4717]
[1728658682503,14.1311,144.1,144.07,3.4717]
[1728658682702,14.1311,144.1,144.07,10.66]
[1728658682703,3.4711,144.1,144.07,10.66]
[1728658682909,0.12502,144.11,144.08,10.66]
[1728658683411,0.12502,144.11,144.09,3.4712]
[1728658683612,10.78502,144.11,144.06,13.3727]
[1728658683803,10.66,144.1,144.06,2.7127]
[1728658684305,10.66,144.1,144.05,16.84]
[1728658684503,3.4714,144.09,144.06,3.4718]
[1728658684700,10.66,144.09,144.02,2.7669]
[1728658684913,10.66,144.05,144.02,6.2398]
[1728658685203,10.66,144.05,144.02,1.4133]
[1728658685410,10.66,144.06,144.02,1.4133]
[1728658685609,14.1321,144.06,144.03,3.4725]
[1728658686804,3.4721,144.06,144.04,3.4724]
[1728658687305,10.66,144.05,144.02,7.5933]
[1728658687505,14.1324,144.04,144.01,3.473]
[1728658688521,3.4727,144.03,144.01,3.473]
[1728658688706,10.66,144.04,144.01,3.473]
[1728658688901,10.95856062,144.1,144.01,10.66]
[1728658689206,3.4723,144.05,144.02,3.4728]
[1728658689413,14.1323,144.05,144.02,3.4728]
[1728658691014,14.1323,144.05,144.01,10.66]
[1728658691209,14.1323,144.05,144.03,3.4725]
[1728658693312,10.66,144.05,144.03,3.4725]
[1728658695018,14.1322,144.05,144.03,3.4725]
[1728658696919,3.4726,144.04,144.01,3.473]
[1728658697122,10.66,144.05,144.01,3.473]
[1728658697521,3.4726,144.04,144.02,3.4729]
[1728658697915,14.1326,144.04,144.02,3.4729]
[1728658698321,10.66,144.03,143.99,0.12502]
[1728658698518,10.66,144.01,143.99,3.59852]
[1728658699924,14.1332,144.01,143.99,3.59852]
[1728658700109,10.66,144.01,143.99,3.59852]
[1728658701319,10.66,144.01,144.0,3.4734]
[1728658701721,10.66,144.01,143.99,0.12502]
[1728658701920,14.1331,144.01,143.99,3.59852]
[1728658702425,5.84,144.06,143.99,10.78502]
[1728658702620,10.66,144.04,143.99,10.78502]
[1728658702823,10.66,144.0,143.93,5.96502]
[1728658703022,3.4742,143.97,143.94,3.4747]
[1728658703223,10.66,143.96,143.94,3.4747]
[1728658705928,14.1344,143.96,143.94,3.4747]
[1728658706334,10.66,143.96,143.93,0.12502]
[1728658706534,10.66,143.96,143.93,3.60002]
[1728658706823,10.66,143.96,143.93,0.12502]
[1728658707634,14.1344,143.96,143.93,3.60002]
[1728658710830,14.1344,143.96,143.93,0.12502]
[1728658711040,10.66,143.96,143.94,3.4747]
[1728658712246,3.474,143.98,143.95,3.4744]
[1728658712447,10.66,143.97,143.93,0.12502]
[1728658713645,10.66,143.98,143.94,10.66]
[1728658714253,14.1339,143.98,143.96,3.4742]
[1728658714748,14.1339,143.98,143.93,0.12502]
[1728658714945,14.1343,143.97,143.94,3.4748]
[1728658715148,10.66,143.95,143.94,3.4748]
[1728658715346,10.66,143.95,143.93,0.12502]
[1728658715540,10.66,143.95,143.93,3.59992]
[1728658716346,10.66,143.95,143.94,3.4748]
[1728658717146,10.66,143.95,143.93,0.12502]
[1728658717349,14.1346,143.95,143.93,3.59992]
[1728658718250,10.66,143.95,143.93,3.59992]
[1728658718852,14.1346,143.95,143.93,3.59992]
[1728658719554,10.66,143.95,143.93,3.59992]
[1728658720753,14.1346,143.95,143.93,3.59992]
[1728658721356,10.66,143.95,143.93,0.12502]
[1728658721557,14.1348,143.94,143.93,0.12502]
[1728658725255,10.66,143.94,143.93,0.12502]
[1728658725460,10.66,143.94,143.93,3.60012]
[1728658725763,5.84,143.98,143.93,0.12502]
[1728658726059,10.66,143.97,143.94,3.4747]
[1728658726456,10.66,143.97,143.93,0.12502]
[1728658726457,14.1343,143.97,143.93,0.12502]
[1728658726657,14.1343,143.97,143.95,3.4746]
[1728658727162,14.1344,143.96,143.94,3.4747]
[1728658727359,10.66,143.96,143.93,0.12502]
[1728658727857,10.66,143.94,143.93,0.12502]
[1728658728363,5.84,143.98,143.93,0.12502]
[1728658728364,3.4747,143.95,143.93,3.60012]
[1728658728661,14.1347,143.95,143.93,3.60012]
[1728658733967,2.7211,144.01,143.93,0.12502]
[1728658734159,10.66,143.96,143.93,0.12502]
[1728658734658,10.66,143.96,143.94,3.4748]
[1728658734858,10.66,143.96,143.93,0.12502]
[1728658735758,10.66,143.96,143.94,3.4748]
[1728658736362,10.66,143.96,143.95,3.4746]
[1728658736860,3.4743,143.97,143.95,3.4746]
[1728658737164,2.7211,144.01,143.93,0.12502]
[1728658737165,10.66,143.99,143.93,10.78502]
[1728658737364,10.66,143.99,143.93,16.40502]
[1728658737564,10.66,143.99,143.97,3.474]
[1728658737565,14.1337,143.99,143.97,3.474]
[1728658737762,10.66,143.98,143.93,5.74502]
[1728658737962,10.66,143.96,143.93,5.74502]
[1728658739457,10.66,143.96,143.94,3.4748]
[1728658739659,8.3411,144.01,143.93,16.40502]
[1728658739873,10.66,143.98,143.93,16.40502]
[1728658740170,10.66,143.97,143.93,5.74502]
[1728658740369,10.66,143.96,143.93,5.74502]
[1728658740566,14.1344,143.96,143.94,3.4747]
[1728658742364,10.66,143.96,143.94,3.4747]
[1728658744976,14.1347,143.95,143.93,3.59992]
[1728658745476,10.66,143.95,143.93,0.12502]
[1728658745662,3.4748,143.94,143.93,0.12502]
[1728658745865,14.1348,143.94,143.93,0.12502]
[1728658746062,10.66,143.94,143.93,0.12502]
[1728658748968,14.1348,143.94,143.93,0.12502]
[1728658751777,3.4757,143.91,143.87,0.12502]
[1728658751972,10.66,143.9,143.87,0.12502]
[1728658752174,10.66,143.9,143.88,3.4762]
[1728658752175,14.1359,143.9,143.88,3.4762]
[1728658753281,10.66,143.9,143.88,3.4762]
[1728658753986,2.7386,143.96,143.89,10.66]
[1728658754274,10.66,143.93,143.89,10.66]
[1728658754675,14.1351,143.93,143.89,10.66]
[1728658755281,14.1351,143.93,143.9,3.4757]
[1728658755779,10.66,143.92,143.9,3.4757]
[1728658756383,10.66,143.92,143.87,10.78502]
[1728658757378,10.66,143.92,143.9,3.4756]
[1728658758379,10.66,143.92,143.91,3.4756]
[1728658765386,10.66,143.92,143.87,0.12502]
[1728658765584,10.66,143.91,143.9,3.4757]
[1728658770690,3.4759,143.9,143.88,3.4761]
[1728658770891,10.66,143.89,143.88,3.4761]
[1728658773095,3.4754,143.92,143.89,3.4758]
[1728658773301,10.66,143.9,143.87,0.12502]
[1728658773998,10.66,143.9,143.89,3.476]
[1728658775796,10.66,143.9,143.87,0.12502]
[1728658775984,5.6,143.93,143.87,0.12502]
[1728658775985,14.1363,143.88,143.87,0.12502]
[1728658777093,14.1363,143.88,143.87,1e-08]
[1728658777286,10.66,143.88,143.81,0.12502]
[1728658777490,10.66,143.85,143.84,3.4771]
[1728658778296,2.8173,143.91,143.85,3.4768]
[1728658778486,10.66,143.87,143.85,3.4768]
[1728658779297,14.1366,143.87,143.85,3.4768]
[1728658782393,14.1368,143.86,143.84,3.4771]
[1728658782998,10.66,143.86,143.85,3.477]
[1728658783395,14.1367,143.87,143.85,3.477]
[1728658785000,14.1367,143.87,143.81,12.16482]
[1728658785001,3.4764,143.88,143.81,12.16482]
[1728658785298,10.66,143.87,143.86,3.4767]
[1728658785602,2.8173,143.91,143.84,10.66]
[1728658785796,14.1359,143.9,143.85,10.66]
[1728658786197,10.66,143.9,143.88,3.4762]
[1728658786595,10.66,143.89,143.84,10.66]
[1728658787502,14.136,143.89,143.87,3.4764]
[1728658787696,10.66,143.88,143.83,16.26]
[1728658788497,14.1363,143.88,143.86,3.4766]
[1728658795504,14.1363,143.88,143.83,5.6]
[1728658795700,10.66,143.85,143.81,4.32632]
[1728658796006,10.66,143.84,143.81,0.12502]
[1728658796205,3.4775,143.83,143.81,3.60292]
[1728658796405,10.66,143.84,143.81,0.12502]
[1728658796906,5.46,143.87,143.81,0.12502]
[1728658797104,10.66,143.84,143.81,0.12502]
[1728658797506,3.4771,143.85,143.81,0.12502]
[1728658797710,10.66,143.85,143.81,0.12502]
[1728658798210,10.66,143.85,143.83,3.4773]
[1728658800407,10.66,143.84,143.83,3.4773]
[1728658800808,1.4032,143.9,143.82,10.66]
[1728658800809,5.46,143.89,143.82,10.66]
[1728658801016,14.1366,143.87,143.82,10.66]
[1728658802011,3.4764,143.88,143.82,10.66]
[1728658802216,14.1364,143.88,143.82,16.12]
[1728658802511,14.1364,143.88,143.85,3.4768]
[1728658802909,14.1364,143.88,143.86,3.4766]
[1728658803112,3.4762,143.89,143.86,3.4766]
[1728658803312,10.66,143.88,143.86,3.4766]
[1728658803612,10.66,143.88,143.84,10.66]
[1728658804014,10.66,143.88,143.86,3.4766]
[1728658804217,10.3307,143.91,143.85,10.66]
[1728658804411,19.5957,143.91,143.85,10.66]
[1728658804920,10.66,143.91,143.89,3.4759]
[1728658805224,14.1354,143.92,143.86,10.66]
[1728658805424,10.66,143.9,143.87,3.4763]
[1728658805721,10.66,143.9,143.85,10.66]
[1728658805922,10.66,143.91,143.87,10.66]
[1728658806123,3.60022,143.93,143.89,10.66]
[1728658806625,3.60022,143.93,143.91,3.4754]
[1728658807118,0.12502,143.93,143.9,10.66]
[1728658807319,0.12502,143.93,143.92,3.4753]
[1728658807525,0.12502,143.93,143.92,14.1353]
[1728658808323,0.12502,143.93,143.92,3.4753]
[1728658808920,10.78502,143.93,143.9,5.46]
[1728658809115,10.66,143.91,143.87,5.46]
[1728658809321,10.66,143.89,143.87,5.46]
[1728658809527,10.66,143.89,143.87,8.9363]
[1728658809728,10.66,143.89,143.87,5.46]
[1728658810326,10.66,143.89,143.88,3.4763]
[1728658811326,10.66,143.9,143.88,3.4763]
[1728658811527,10.66,143.9,143.89,3.476]
[1728658812226,0.12502,143.93,143.89,10.66]
[1728658812626,10.78502,143.93,143.89,10.66]
[1728658812827,10.78502,143.93,143.92,3.4753]
[1728658813028,10.78502,143.93,143.88,10.66]
[1728658813225,10.66,143.89,143.87,5.46]
[1728658813930,10.66,143.89,143.88,3.4763]
[1728658814533,10.66,143.92,143.9,3.4758]
[1728658814831,10.78502,143.93,143.88,10.66]
[1728658815422,14.26022,143.93,143.88,10.66]
[1728658815930,14.26022,143.93,143.9,3.4756]
[1728658816133,10.66,143.91,143.87,3.50904725]
[1728658816434,10.66,143.91,143.9,3.4758]
[1728658816625,14.1354,143.92,143.9,3.4758]
[1728658816931,10.78502,143.93,143.89,10.66]
[1728658817337,10.78502,143.93,143.92,3.4753]
[1728658817630,0.12502,143.93,143.92,3.4753]
[1728658821236,0.12502,143.93,143.92,14.1353]
[1728658822128,10.78502,143.99,143.92,10.66]
[1728658822327,14.25872,143.99,143.97,3.4741]
[1728658822533,0.12502,143.99,143.95,10.66]
[1728658823236,0.12502,143.99,143.98,3.4739]
[1728658826435,3.4741,143.98,143.95,3.4744]
[1728658826733,10.66,143.96,143.95,3.4744]
[1728658828237,10.66,143.97,143.96,3.4743]
[1728658829337,0.12502,143.99,143.97,3.4739]
[1728658829553,10.78502,143.99,143.97,3.4739]
[1728658830037,14.134,143.98,143.95,3.4745]
[1728658830337,10.66,143.97,143.95,3.4745]
[1728658830537,10.66,143.97,143.9,4.0177]
[1728658830840,10.66,143.93,143.91,8.8954]
[1728658831138,10.66,143.93,143.91,3.4754]
[1728658831839,10.66,143.93,143.92,3.4753]
[1728658833333,10.66,143.94,143.92,3.4753]
[1728658834237,4.19452,143.99,143.9,16.08]
[1728658834540,10.66,143.96,143.91,10.66]
[1728658834834,10.66,143.96,143.94,3.4747]
[1728658835035,10.66,143.95,143.9,16.08]
[1728658835236,4.19452,143.99,143.9,16.08]
[1728658835436,14.1345,143.96,143.93,3.4749]
[1728658835630,10.66,143.96,143.91,10.66]
[1728658836043,10.66,143.98,143.96,3.4743]
[1728658836341,10.66,143.98,143.93,10.66]
[1728658837141,10.66,143.98,143.96,3.4742]
[1728658837142,14.134,143.98,143.96,3.4742]
[1728658837344,10.66,143.97,143.9,5.42]
[1728658837539,14.1348,143.94,143.9,5.42]
[1728658838044,14.1348,143.94,143.92,3.4753]
[1728658838336,10.66,143.94,143.92,3.4753]
[1728658838840,10.66,143.95,143.94,3.4748]
[1728658839035,4.19452,143.99,143.92,10.66]
[1728658839242,10.66,143.97,143.92,10.66]
[1728658839444,10.66,143.97,143.95,3.4745]
[1728658839845,10.66,143.97,143.92,10.66]
[1728658840047,10.66,143.97,143.96,3.4744]
[1728658840445,3.474,143.98,143.96,3.4744]
[1728658840947,24.34822,143.99,143.9,22.1]
[1728658841146,4.19452,143.99,143.9,22.1]
[1728658841340,0.12502,143.99,143.9,22.1]
[1728658841539,3.59882,143.99,143.9,22.1]
[1728658841946,3.59882,143.99,143.96,3.4742]
[1728658842247,0.12502,143.99,143.94,5.42]
[1728658842649,0.12502,143.99,143.97,3.4739]
[1728658843448,0.12502,143.99,143.98,3.4739]
[1728658843843,3.59872,143.99,143.97,3.474]
[1728658845342,3.4739,143.98,143.94,5.42]
[1728658847349,3.4739,143.98,143.95,3.4745]
[1728658847551,3.4739,143.98,143.94,5.42]
[1728658847847,16.68,143.97,143.88,17.9794]
[1728658848051,16.68,143.95,143.91,3.4755]
[1728658848449,3.475,143.94,143.91,3.4755]
[1728658848647,16.68,143.95,143.91,3.4755]
[1728658848843,16.68,143.95,143.9,3.4757]
[1728658849149,3.4752,143.93,143.88,5.52]
[1728658849349,3.4752,143.93,143.91,3.4755]
[1728658849656,16.68,143.95,143.91,3.4755]
[1728658849849,3.475,143.94,143.91,3.4755]
[1728658850251,18.0503,143.97,143.88,22.2]
[1728658850557,3.4747,143.95,143.93,3.4751]
[1728658850743,18.0503,143.97,143.88,22.2]
[1728658851051,3.4745,143.96,143.94,3.4748]
[1728658851253,1.3703,143.97,143.89,16.68]
[1728658851849,4.8446,143.97,143.89,16.68]
[1728658852153,3.4743,143.97,143.89,16.68]
[1728658852353,6.1622,143.98,143.96,3.4744]
[1728658852856,16.80502,143.99,143.92,5.52]
[1728658853055,3.4739,143.98,143.96,3.4742]
[1728658853655,20.27882,143.99,143.96,3.4742]
[1728658854056,3.59882,143.99,143.96,3.4742]
[1728658854256,3.4739,143.98,143.96,3.4742]
[1728658854751,3.4739,143.98,143.92,5.52]
[1728658854957,3.4742,143.97,143.94,3.4748]
[1728658855257,3.4742,143.97,143.92,5.52]
[1728658855459,16.68,143.97,143.88,18.0335]
[1728658855757,16.68,143.97,143.89,5.52]
[1728658856145,2.6909,143.98,143.89,5.52]
[1728658856455,2.6909,143.98,143.9,16.68]
[1728658856752,3.4744,143.96,143.94,3.4747]
[1728658857759,3.4747,143.95,143.92,3.4751]
[1728658858055,16.68,143.97,143.92,3.4751]
[1728658858459,3.475,143.94,143.92,3.4751]
[1728658858665,16.68,143.97,143.91,3.4754]
[1728658858959,3.475,143.94,143.91,3.4754]
[1728658860358,22.2,143.97,143.91,3.4754]
[1728658860550,16.68,143.95,143.87,1.42972]
[1728658860862,16.68,143.93,143.87,5.64502]
[1728658861360,3.4754,143.92,143.9,3.4758]
[1728658862365,3.4752,143.93,143.9,3.4758]
[1728658862765,3.4752,143.93,143.87,5.64502]
[1728658863063,16.68,143.95,143.87,5.64502]
[1728658863064,3.475,143.94,143.87,5.64502]
[1728658863361,5.52,143.97,143.88,16.68]
[1728658864066,19.3709,143.98,143.9,16.68]
[1728658864067,2.6909,143.98,143.9,16.68]
[1728658864270,2.6909,143.98,143.91,5.52]
[1728658864760,2.6909,143.98,143.94,3.4746]
[1728658865265,3.4742,143.97,143.95,3.4746]
[1728658865762,2.6909,143.98,143.91,5.52]
[1728658865963,3.4739,143.98,143.96,3.4744]
[1728658866265,0.12502,143.99,143.91,5.52]
[1728658866558,0.12502,143.99,143.89,1.3159]
[1728658866765,16.68,143.98,143.9,5.52]
[1728658867264,3.4745,143.96,143.93,3.4749]
[1728658867465,3.4745,143.96,143.9,5.52]
[1728658867670,16.68,143.98,143.9,5.52]
[1728658867966,16.68,143.98,143.94,3.4747]
[1728658867967,3.4744,143.96,143.94,3.4747]
[1728658868265,16.68,143.98,143.94,3.4747]
[1728658868467,3.4743,143.97,143.94,3.4747]
[1728658868767,3.4743,143.97,143.9,22.2]
[1728658868961,3.4743,143.97,143.95,3.4746]
[1728658870463,3.4745,143.96,143.94,3.4748]
[1728658871359,16.68,143.98,143.94,3.4748]
[1728658871561,16.80502,143.99,143.9,22.2]
[1728658871857,16.80502,143.99,143.96,3.4743]
[1728658872271,3.4741,143.98,143.96,3.4743]
[1728658872468,16.80502,143.99,143.95,3.4744]
[1728658872766,16.80502,143.99,143.9,22.2]
[1728658873270,3.474,143.98,143.9,22.2]
[1728658873572,16.80502,143.99,143.9,22.2]
[1728658874067,3.4742,143.97,143.94,3.4746]
[1728658874669,3.4742,143.97,143.9,22.2]
[1728658874871,3.4742,143.97,143.95,3.4745]
[1728658875471,16.80502,143.99,143.9,22.2]
[1728658875678,20.27872,143.99,143.96,3.4741]
[1728658875871,16.80502,143.99,143.96,3.4741]
[1728658876172,16.80502,143.99,143.9,22.2]
[1728658876173,0.12502,143.99,143.92,16.68]
[1728658876367,3.59872,143.99,143.97,3.474]
[1728658877265,0.12502,143.99,143.94,25.66762711]
[1728658877471,0.12502,143.99,143.98,3.4739]
[1728658879575,0.12502,143.99,143.94,8.98762711]
[1728658879772,0.12502,143.99,143.94,5.52]
[1728658879973,3.474,143.98,143.96,3.4742]
[1728658880868,3.59872,143.99,143.97,3.4741]
[1728658882881,0.12502,143.99,143.98,3.4739]
[1728658889288,3.474,143.98,143.94,10.35637523]
[1728658889495,16.68,143.98,143.93,8.2418]
[1728658890092,16.68,143.98,143.88,24.972]
[1728658890289,3.4746,143.96,143.93,3.4749]
[1728658890593,3.4746,143.96,143.89,8.2166]
[1728658891598,3.4746,143.96,143.94,3.4747]
[1728658891889,16.68,143.98,143.94,3.4747]
[1728658892190,0.12502,143.99,143.93,5.5]
[1728658892696,3.59882,143.99,143.96,3.4741]
[1728658893396,3.4739,143.98,143.96,3.4741]
[1728658894496,3.59872,143.99,143.97,3.4739]
[1728658894892,0.12502,143.99,143.93,5.5]
[1728658895098,3.4739,143.98,143.96,3.4742]
[1728658895798,3.59882,143.99,143.97,3.474]
[1728658896094,0.12502,143.99,143.93,5.5]
[1728658896499,3.59872,143.99,143.97,3.4741]
[1728658898998,0.12502,143.99,143.94,16.68]
[1728658899200,0.12502,143.99,143.98,3.4739]
[1728658900402,0.12502,143.99,143.97,3.474]
[1728658900602,0.12502,143.99,143.94,2.6775]
[1728658900804,16.68,143.96,143.88,1.3397]
[1728658900998,3.4754,143.92,143.88,1.3397]
[1728658901194,16.68,143.94,143.88,6.8397]
[1728658901399,16.68,143.94,143.88,5.5]
[1728658901604,16.68,143.94,143.89,3.4759]
[1728658901605,3.4753,143.92,143.89,3.4759]
[1728658902304,3.4753,143.92,143.9,3.4758]
[1728658902606,16.68,143.94,143.87,8.38942]
[1728658902806,3.4756,143.91,143.87,8.38942]
[1728658903009,16.68,143.94,143.87,8.38942]
[1728658903309,3.4752,143.93,143.9,3.4757]
[1728658903500,3.4752,143.93,143.87,8.38942]
[1728658903701,5.5,143.95,143.87,8.38942]
[1728658903896,3.475,143.94,143.91,3.4756]
[1728658904505,3.4751,143.93,143.91,3.4756]
[1728658904706,5.5,143.95,143.92,3.4751]
[1728658905106,8.9747,143.95,143.92,3.4751]
[1728658905508,8.9747,143.95,143.9,3.4758]
[1728658905704,3.4747,143.95,143.88,17.9977]
[1728658906208,3.4747,143.95,143.92,3.4752]
[1728658909311,3.4747,143.95,143.93,3.4751]
[1728658911115,3.4747,143.95,143.88,17.9977]
[1728658911315,3.4747,143.95,143.92,3.4752]
[1728658911907,16.68,143.97,143.93,3.4751]
[1728658912109,3.4743,143.97,143.89,16.68]
[1728658912513,8.2203,143.98,143.94,3.4747]
[1728658913213,3.4743,143.97,143.94,3.4747]
[1728658913407,8.2203,143.98,143.94,3.4747]
[1728658914008,3.4743,143.97,143.94,3.4747]
[1728658914910,8.2203,143.98,143.94,3.4747]
[1728658915115,3.4744,143.96,143.94,3.4747]
[1728658916815,8.2203,143.98,143.91,5.48]
[1728658917114,16.68,143.97,143.91,5.48]
[1728658918114,3.475,143.94,143.92,3.4752]
[1728658920829,3.4747,143.95,143.92,3.4752]
[1728658921423,3.4747,143.95,143.93,3.4751]
[1728658922617,16.68,143.97,143.9,5.48]
[1728658922820,0.12502,143.99,143.91,16.68]
[1728658923429,0.12502,143.99,143.92,1.3379]
[1728658923822,16.80502,143.99,143.92,1.3379]
[1728658924125,3.4745,143.96,143.94,3.4748]
[1728658925027,3.475,143.94,143.9,5.48]
[1728658925823,3.475,143.94,143.92,3.4753]
[1728658926324,18.0801,143.98,143.9,5.48]
[1728658926521,3.4748,143.95,143.93,3.475]
[1728658926721,18.0801,143.98,143.9,5.48]
[1728658926924,3.4752,143.93,143.91,3.4754]
[1728658927225,16.68,143.96,143.91,3.4754]
[1728658927427,3.4751,143.94,143.91,3.4754]
[1728658927628,3.4751,143.94,143.92,3.4753]
[1728658927922,16.68,143.96,143.92,3.4753]
[1728658928324,3.4748,143.95,143.89,5.48]
[1728658928522,19.4138,143.98,143.9,16.68]
[1728658928932,3.4744,143.96,143.9,16.68]
[1728658929232,2.7338,143.98,143.9,16.68]
[1728658929530,16.80502,143.99,143.9,16.68]
[1728658929728,16.80502,143.99,143.92,16.68]
[1728658929922,16.80502,143.99,143.93,5.48]
[1728658930321,16.80502,143.99,143.95,3.4744]
[1728658930524,14.154,143.98,143.95,3.4744]
[1728658930825,10.68,143.98,143.93,16.16]
[1728658931032,10.68,143.98,143.96,3.4742]
[1728658932530,10.68,143.98,143.93,16.16]
[1728658932731,10.68,143.98,143.94,3.4747]
[1728658932933,10.68,143.98,143.93,16.16]
[1728658933431,3.4742,143.97,143.95,3.4745]
[1728658933932,14.1539,143.98,143.96,3.4744]
[1728658934530,3.4741,143.97,143.95,3.4745]
[1728658938129,14.1539,143.98,143.96,3.4744]
[1728658939232,14.27882,143.99,143.97,3.4741]
[1728658939532,14.27882,143.99,143.94,10.68]
[1728658940134,14.27882,143.99,143.96,3.4742]
[1728658940730,3.4739,143.98,143.96,3.4742]
[1728658941834,14.1539,143.98,143.96,3.4742]
[1728658946038,3.4739,143.98,143.96,3.4742]
[1728658946239,14.1539,143.98,143.96,3.4742]
[1728658947141,10.68,143.98,143.93,16.16]
[1728658947338,3.4741,143.97,143.95,3.4745]
[1728658948042,3.4745,143.96,143.94,3.4747]
[1728658950542,3.4742,143.97,143.95,3.4745]
[1728658951043,3.4742,143.97,143.93,16.16]
[1728658951341,3.4742,143.97,143.94,3.4747]
[1728658952440,3.4742,143.97,143.93,16.16]
[1728658952641,3.4742,143.97,143.95,3.4746]
[1728658954851,3.59872,143.99,143.96,3.4741]
[1728658955045,3.59872,143.99,143.95,10.68]
[1728658955545,3.59872,143.99,143.93,5.48]
[1728658955546,3.59872,143.99,143.96,3.4742]
[1728658957140,3.59872,143.99,143.94,10.68]
[1728658957347,3.59872,143.99,143.97,3.4741]
[1728658957646,0.12502,143.99,143.94,10.68]
[1728658958143,0.12502,143.99,143.97,3.4739]
[1728658958641,0.12502,143.99,143.98,3.4739]
[1728658960442,23.47570003,144.08,143.98,10.68]
[1728658960747,10.80502,144.05,143.99,10.68]
[1728658961045,3.4727,144.03,143.99,10.68]
[1728658961246,14.1527,144.03,143.99,10.68]
[1728658961441,3.4727,144.03,143.99,10.68]
[1728658961642,3.4727,144.03,144.01,3.473]
[1728658964053,3.4727,144.03,144.0,3.4733]
[1728658966549,3.4731,144.01,143.97,10.68]
[1728658966850,10.68,144.0,143.95,10.68]
[1728658967153,14.1535,144.0,143.98,3.4739]
[1728658967456,3.4735,144.0,143.98,3.4739]
[1728658969954,14.1533,144.01,143.97,10.68]
[1728658970153,14.1533,144.01,143.99,3.4736]
[1728658970655,10.68,144.02,143.97,10.68]
[1728658970844,14.1531,144.02,144.0,3.4733]
[1728658971745,14.1531,144.02,143.97,10.68]
[1728658971952,14.1531,144.02,143.99,3.4735]
[1728658973055,3.4732,144.01,143.99,3.4735]
[1728658975154,14.1529,144.03,144.01,3.4731]
[1728658975354,14.1529,144.03,143.99,10.68]
[1728658976258,3.4729,144.02,144.0,3.4733]
[1728658980555,10.68,144.03,143.98,10.68]
[1728658980759,3.4731,144.01,143.99,3.4735]
[1728658981059,10.68,144.03,143.98,10.68]
[1728658981559,3.4731,144.02,143.99,3.4734]
[1728658982262,3.4725,144.04,144.0,10.68]
[1728658982458,0.12502,144.05,143.99,5.32]
[1728658982961,10.68,144.04,144.0,10.68]
[1728658983562,0.12502,144.05,144.0,10.68]
[1728658983760,0.12502,144.05,144.01,10.68]
[1728658984162,0.12502,144.05,144.02,3.4729]